fUSD/lending_fUSD_20250204
["ID","MTS","AMOUNT","RATE_DAILY","PERIOD"]
[351608153,1738660239288,-500.0,8.656e-05,2]
[351608155,1738660239298,-1036.73,8.656e-05,2]
[351608157,1738660239307,-500.0,8.656e-05,2]
[351608159,1738660239317,-620.98,8.656e-05,2]
[351608161,1738660239326,-519.21,8.656e-05,2]
[351608163,1738660239336,-500.0,8.656e-05,2]
[351608165,1738660239345,-500.0,8.656e-05,2]
[351608167,1738660239355,-500.0,8.656e-05,2]
[351608170,1738660239365,-500.0,8.656e-05,2]
[351608173,1738660239375,-877.29,8.656e-05,2]
[351608176,1738660239386,-505.65,8.656e-05,2]
[351608179,1738660239396,-500.0,8.656e-05,2]
[351608182,1738660239405,-500.0,8.656e-05,2]
[351608185,1738660239415,-500.0,8.656e-05,2]
[351608187,1738660239424,-500.0,8.656e-05,2]
[351608188,1738660239432,-1087.09,8.656e-05,2]
[351608190,1738660239439,-500.0,8.656e-05,2]
[351608192,1738660239448,-804.12,8.656e-05,2]
[351608194,1738660239457,-1119.36,8.656e-05,2]
[351608197,1738660239467,-500.0,8.656e-05,2]
[351608198,1738660239477,-500.0,8.656e-05,2]
[351608200,1738660239486,-500.0,8.656e-05,2]
[351608203,1738660239497,-841.31,8.656e-05,2]
[351608205,1738660239507,-500.0,8.656e-05,2]
[351608207,1738660239518,-500.0,8.656e-05,2]
[351608208,1738660239527,-500.0,8.656e-05,2]
[351608211,1738660239537,-665.05,8.656e-05,2]
[351608213,1738660239547,-500.0,8.656e-05,2]
[351608215,1738660239556,-757.91,8.656e-05,2]
[351608217,1738660239565,-500.0,8.656e-05,2]
[351608218,1738660239575,-1157.6,8.656e-05,2]
[351608220,1738660239584,-500.0,8.656e-05,2]
[351608222,1738660239594,-500.0,8.656e-05,2]
[351608224,1738660239603,-950.16,8.656e-05,2]
[351608226,1738660239612,-500.0,8.656e-05,2]
[351608228,1738660239622,-628.75,8.656e-05,2]
[351608230,1738660239632,-559.13,8.656e-05,2]
[351608232,1738660239641,-500.0,8.656e-05,2]
[351608234,1738660239650,-500.0,8.656e-05,2]
[351608236,1738660239660,-500.0,8.656e-05,2]
[351608238,1738660239669,-500.0,8.656e-05,2]
[351608240,1738660239678,-500.0,8.656e-05,2]
[351608242,1738660239687,-210.18312133,8.656e-05,2]
[351608244,1738660239695,-500.0,8.656e-05,2]
[351608246,1738660239704,-500.0,8.656e-05,2]
[351608248,1738660239714,-1186.54,8.656e-05,2]
[351608250,1738660239724,-547.75,8.656e-05,2]
[351608252,1738660239733,-859.11,8.656e-05,2]
[351608254,1738660239743,-716.66,8.656e-05,2]
[351608256,1738660239752,-1069.43,8.656e-05,2]
[351608258,1738660239762,-978.63,8.656e-05,2]
[351608260,1738660239771,-500.0,8.656e-05,2]
[351608262,1738660239780,-500.0,8.656e-05,2]
[351608264,1738660239790,-905.12,8.656e-05,2]
[351608266,1738660239798,-500.0,8.656e-05,2]
[351608268,1738660239807,-749.33,8.656e-05,2]
[351608270,1738660239817,-557.09,8.656e-05,2]
[351608272,1738660239828,-500.0,8.656e-05,2]
[351608274,1738660239837,-500.0,8.656e-05,2]
[351608276,1738660239847,-500.0,8.656e-05,2]
[351608278,1738660239857,-544.99,8.656e-05,2]
[351608280,1738660239866,-500.0,8.656e-05,2]
[351608282,1738660239876,-710.83,8.656e-05,2]
[351608284,1738660239886,-699.51,8.656e-05,2]
[351608286,1738660239895,-555.97,8.656e-05,2]
[351608288,1738660239904,-500.0,8.656e-05,2]
[351608290,1738660239913,-1409.39,8.656e-05,2]
[351608292,1738660239922,-963.48,8.656e-05,2]
[351608294,1738660239932,-500.0,8.656e-05,2]
[351608296,1738660239941,-500.0,8.656e-05,2]
[351608298,1738660239951,-1668.94,8.656e-05,2]
[351608299,1738660239960,-622.01,8.656e-05,2]
[351608301,1738660239970,-500.0,8.656e-05,2]
[351608303,1738660239979,-760.67,8.656e-05,2]
[351608305,1738660239989,-708.03,8.656e-05,2]
[351608307,1738660240002,-500.0,8.656e-05,2]
[351608310,1738660240013,-500.0,8.656e-05,2]
[351608311,1738660240022,-500.0,8.656e-05,2]
[351608314,1738660240032,-1112.37,8.656e-05,2]
[351608316,1738660240044,-500.0,8.656e-05,2]
[351608318,1738660240053,-1071.91,8.656e-05,2]
[351608319,1738660240062,-500.0,8.656e-05,2]
[351608321,1738660240074,-500.0,8.656e-05,2]
[351608323,1738660240084,-1237.35,8.656e-05,2]
[351608325,1738660240093,-1326.27,8.656e-05,2]
[351608327,1738660240102,-500.0,8.656e-05,2]
[351608329,1738660240112,-500.0,8.656e-05,2]
[351608331,1738660240121,-1137.17,8.656e-05,2]
[351608333,1738660240130,-500.0,8.656e-05,2]
[351608335,1738660240141,-500.0,8.656e-05,2]
[351608338,1738660240152,-500.0,8.656e-05,2]
[351608340,1738660240162,-500.0,8.656e-05,2]
[351608342,1738660240171,-500.0,8.656e-05,2]
[351608343,1738660240181,-1559.35,8.656e-05,2]
[351608346,1738660240192,-599.12,8.656e-05,2]
[351608347,1738660240202,-500.0,8.656e-05,2]
[351608350,1738660240211,-732.94,8.656e-05,2]
[351608351,1738660240222,-518.29,8.656e-05,2]
[351608353,1738660240232,-349.60329149,8.656e-05,2]
[351608355,1738660240242,-1716.94,8.656e-05,2]
[351608358,1738660240251,-566.33,8.656e-05,2]
[351608359,1738660240262,-918.55,8.656e-05,2]
[351608361,1738660240271,-621.17,8.656e-05,2]
[351608363,1738660240281,-663.46,8.656e-05,2]
[351608365,1738660240290,-500.0,8.656e-05,2]
[351608367,1738660240300,-845.23,8.656e-05,2]
[351608369,1738660240310,-530.46,8.656e-05,2]
[351608371,1738660240319,-2025.66,8.656e-05,2]
[351608373,1738660240328,-662.99,8.656e-05,2]
[351608375,1738660240338,-500.0,8.656e-05,2]
[351608378,1738660240349,-500.0,8.656e-05,2]
[351608380,1738660240358,-859.16,8.656e-05,2]
[351608381,1738660240367,-2675.16,8.656e-05,2]
[351608383,1738660240376,-500.0,8.656e-05,2]
[351608385,1738660240386,-753.92,8.656e-05,2]
[351608387,1738660240395,-799.84,8.656e-05,2]
[351608389,1738660240404,-511.07,8.656e-05,2]
[351608391,1738660240414,-500.0,8.656e-05,2]
[351608393,1738660240423,-897.61,8.656e-05,2]
[351608395,1738660240433,-560.89,8.656e-05,2]
[351608397,1738660240443,-500.0,8.656e-05,2]
[351608399,1738660240452,-500.0,8.656e-05,2]
[351608401,1738660240461,-500.0,8.656e-05,2]
[351608403,1738660240470,-500.0,8.656e-05,2]
[351608405,1738660240479,-500.0,8.656e-05,2]
[351608407,1738660240488,-500.0,8.656e-05,2]
[351608409,1738660240497,-1327.39,8.656e-05,2]
[351608411,1738660240507,-955.81,8.656e-05,2]
[351608413,1738660240516,-500.0,8.656e-05,2]
[351608415,1738660240525,-500.0,8.656e-05,2]
[351608417,1738660240535,-665.72,8.656e-05,2]
[351608419,1738660240544,-500.0,8.656e-05,2]
[351608421,1738660240553,-500.0,8.656e-05,2]
[351608423,1738660240562,-500.0,8.656e-05,2]
[351608425,1738660240571,-613.76894877,8.656e-05,2]
[351608427,1738660240580,-751.13,8.656e-05,2]
[351608429,1738660240590,-1544.3,8.656e-05,2]
[351608431,1738660240599,-2549.35,8.656e-05,2]
[351608433,1738660240608,-827.17,8.656e-05,2]
[351608435,1738660240618,-500.0,8.656e-05,2]
[351608437,1738660240627,-602.32,8.656e-05,2]
[351608439,1738660240636,-500.0,8.656e-05,2]
[351608441,1738660240645,-500.0,8.656e-05,2]
[351608443,1738660240654,-1204.79,8.656e-05,2]
[351608445,1738660240663,-500.0,8.656e-05,2]
[351608447,1738660240672,-811.4,8.656e-05,2]
[351608449,1738660240681,-500.0,8.656e-05,2]
[351608451,1738660240690,-1892.86,8.656e-05,2]
[351608453,1738660240699,-1472.05,8.656e-05,2]
[351608455,1738660240707,-1433.43,8.656e-05,2]
[351608457,1738660240716,-516.88,8.656e-05,2]
[351608459,1738660240726,-1319.49,8.656e-05,2]
[351608461,1738660240735,-500.0,8.656e-05,2]
[351608463,1738660240744,-622.28,8.656e-05,2]
[351608465,1738660240753,-986.87,8.656e-05,2]
[351608467,1738660240763,-668.24,8.656e-05,2]
[351608469,1738660240772,-509.95127048,8.656e-05,2]
[351608471,1738660240782,-1093.83,8.656e-05,2]
[351608472,1738660240791,-695.76,8.656e-05,2]
[351608473,1738660240801,-150.0,8.66e-05,2]
[351608474,1738660240811,-902.0,8.66e-05,2]
[351608475,1738660240820,-438.55,8.66e-05,2]
[351608476,1738660240829,-150.0,8.66e-05,2]
[351608477,1738660240839,-873.3,8.66e-05,2]
[351608478,1738660240848,-150.91,8.66e-05,2]
[351608479,1738660240857,-722.48,8.66e-05,2]
[351608480,1738660240866,-300.0,8.66e-05,2]
[351608482,1738660240876,-150.0,8.66e-05,2]
[351608483,1738660240884,-300.0,8.7e-05,3]
[351608486,1738660240895,-500.0,8.767e-05,2]
[351608488,1738660240904,-200.0,8.768e-05,2]
[351608490,1738660240913,-1108.6,8.77e-05,2]
[351608491,1738660240923,-153.73674454,8.773e-05,2]
[351608493,1738660240933,-162.08663397,8.773e-05,2]
[351608495,1738660240943,-500.0,8.773e-05,2]
[351608498,1738660240953,-438.25,8.78e-05,2]
[351608500,1738660240964,-948.96,8.78e-05,2]
[351608502,1738660240974,-438.55,8.78e-05,2]
[351608504,1738660240984,-150.0,8.78e-05,2]
[351608506,1738660240995,-150.0,8.78e-05,2]
[351608508,1738660241005,-250.0,8.789e-05,2]
[351608510,1738660241016,-1289.87,8.792e-05,2]
[351608512,1738660241026,-2265.06,8.792e-05,2]
[351608514,1738660241037,-896.809591,8.792e-05,2]
[351608516,1738660241047,-1131.47,8.792e-05,2]
[351608518,1738660241056,-1071.95,8.792e-05,2]
[351608520,1738660241065,-2446.83,8.792e-05,2]
[351608522,1738660241075,-883.157242,8.792e-05,2]
[351608524,1738660241085,-1844.66,8.792e-05,2]
[351608526,1738660241094,-519.19,8.792e-05,2]
[351608528,1738660241104,-761.89,8.792e-05,2]
[351608530,1738660241113,-1856.7,8.792e-05,2]
[351608532,1738660241122,-1728.78,8.792e-05,2]
[351608534,1738660241131,-1324.11,8.792e-05,2]
[351608536,1738660241141,-518.96,8.792e-05,2]
[351608538,1738660241150,-2902.06,8.792e-05,2]
[351608540,1738660241158,-2037.04,8.792e-05,2]
[351608542,1738660241168,-920.99,8.792e-05,2]
[351608544,1738660241177,-500.0,8.792e-05,2]
[351608546,1738660241187,-1618.02,8.792e-05,2]
[351608548,1738660241196,-867.67,8.792e-05,2]
[351608550,1738660241205,-1072.42,8.792e-05,2]
[351608551,1738660241215,-2284.07,8.792e-05,2]
[351608574,1738660241400,-875.08,8.792e-05,2]
[351608578,1738660241447,-1481.31,8.792e-05,2]
[351608580,1738660241457,-1631.71,8.792e-05,2]
[351608582,1738660241467,-1111.86,8.792e-05,2]
[351608584,1738660241476,-1234.42,8.792e-05,2]
[351608586,1738660241485,-1320.12,8.792e-05,2]
[351608588,1738660241494,-815.98,8.792e-05,2]
[351608590,1738660241504,-1097.72,8.792e-05,2]
[351608592,1738660241515,-2801.02,8.792e-05,2]
[351608594,1738660241524,-924.36152619,8.792e-05,2]
[351608668,1738660242244,-500.0,8.655e-05,2]
[351608670,1738660242254,-500.0,8.656e-05,2]
[351608672,1738660242265,-528.41575154,8.792e-05,2]
[351608674,1738660242277,-11.59272227,8.792e-05,2]
[351608676,1738660242287,-1035.72,8.792e-05,2]
[351608678,1738660242296,-427.96490626,8.792e-05,2]
[351608681,1738660242316,-135.69509374,8.792e-05,2]
[351608683,1738660242325,-834.91,8.792e-05,2]
[351608685,1738660242334,-1966.85,8.792e-05,2]
[351608687,1738660242343,-1586.99,8.792e-05,2]
[351608689,1738660242353,-1516.03,8.792e-05,2]
[351608691,1738660242362,-2899.49,8.792e-05,2]
[351608693,1738660242372,-1907.02,8.792e-05,2]
[351608695,1738660242381,-715.51231871,8.792e-05,2]
[351608699,1738660242404,-982.51,8.792e-05,2]
[351608779,1738660243159,-500.0,8.656e-05,2]
[351608781,1738660243168,-66.28768129,8.792e-05,2]
[351608784,1738660243178,-624.0,8.792e-05,2]
[351608786,1738660243187,-2016.64,8.792e-05,2]
[351608788,1738660243196,-500.0,8.792e-05,2]
[351608790,1738660243206,-1038.25035368,8.792e-05,2]
[351608792,1738660243217,-307.03964632,8.792e-05,2]
[351608794,1738660243226,-1060.96,8.792e-05,2]
[351608796,1738660243235,-3244.94,8.792e-05,2]
[351608798,1738660243244,-500.0,8.792e-05,2]
[351608800,1738660243254,-797.51,8.792e-05,2]
[351608802,1738660243265,-1931.0,8.792e-05,2]
[351608804,1738660243274,-1642.96,8.792e-05,2]
[351608806,1738660243284,-505.96,8.792e-05,2]
[351608808,1738660243293,-500.0,8.792e-05,2]
[351608810,1738660243302,-1820.5,8.792e-05,2]
[351608812,1738660243311,-1389.56240468,8.792e-05,2]
[351608815,1738660243323,-100.76759532,8.792e-05,2]
[351608817,1738660243332,-1555.94,8.792e-05,2]
[351608819,1738660243341,-500.0,8.792e-05,2]
[351608821,1738660243350,-793.04240468,8.792e-05,2]
[351608823,1738660243366,-291.94759532,8.792e-05,2]
[351608825,1738660243375,-1884.31,8.792e-05,2]
[351608827,1738660243385,-1349.23,8.792e-05,2]
[351608829,1738660243395,-1370.97,8.792e-05,2]
[351608831,1738660243404,-500.0,8.792e-05,2]
[351608833,1738660243413,-1439.63,8.792e-05,2]
[351608835,1738660243422,-1685.18,8.792e-05,2]
[351608837,1738660243431,-500.0,8.792e-05,2]
[351608839,1738660243440,-1360.22,8.792e-05,2]
[351608841,1738660243449,-500.0,8.792e-05,2]
[351608843,1738660243458,-935.67,8.792e-05,2]
[351608845,1738660243466,-905.66,8.792e-05,2]
[351608847,1738660243475,-788.44,8.792e-05,2]
[351608849,1738660243484,-500.0,8.792e-05,2]
[351608851,1738660243494,-1089.37,8.792e-05,2]
[351608853,1738660243504,-500.0,8.792e-05,2]
[351608855,1738660243515,-1418.78,8.792e-05,2]
[351608857,1738660243523,-1184.19,8.792e-05,2]
[351608859,1738660243533,-1474.81,8.792e-05,2]
[351608861,1738660243542,-916.55,8.792e-05,2]
[351608863,1738660243551,-1106.39,8.792e-05,2]
[351608865,1738660243561,-500.0,8.792e-05,2]
[351608867,1738660243569,-500.0,8.793e-05,2]
[351608869,1738660243579,-500.0,8.793e-05,2]
[351608871,1738660243588,-500.0,8.793e-05,2]
[351608873,1738660243597,-500.0,8.793e-05,2]
[351608875,1738660243606,-680.84,8.793e-05,2]
[351608877,1738660243616,-589.12,8.793e-05,2]
[351608879,1738660243625,-500.0,8.793e-05,2]
[351608881,1738660243634,-500.0,8.793e-05,2]
[351608883,1738660243643,-500.0,8.793e-05,2]
[351608885,1738660243652,-500.0,8.793e-05,2]
[351608887,1738660243661,-440.12263304,8.793e-05,2]
[351608889,1738660243671,-500.0,8.793e-05,2]
[351608891,1738660243680,-500.0,8.793e-05,2]
[351608893,1738660243689,-1134.13,8.793e-05,2]
[351608895,1738660243698,-500.0,8.793e-05,2]
[351608897,1738660243707,-500.0,8.793e-05,2]
[351608899,1738660243716,-500.0,8.793e-05,2]
[351608901,1738660243726,-515.86,8.793e-05,2]
[351608903,1738660243734,-597.4,8.793e-05,2]
[351608905,1738660243744,-500.0,8.793e-05,2]
[351608907,1738660243753,-807.06,8.793e-05,2]
[351608909,1738660243764,-500.0,8.793e-05,2]
[351608911,1738660243774,-812.02,8.793e-05,2]
[351608913,1738660243783,-500.0,8.793e-05,2]
[351608915,1738660243792,-1279.01,8.793e-05,2]
[351608917,1738660243801,-620.06345253,8.793e-05,2]
[351608919,1738660243810,-529.78,8.793e-05,2]
[351608921,1738660243819,-500.0,8.793e-05,2]
[351608923,1738660243828,-177.22235443,8.793e-05,2]
[351608926,1738660243847,-837.49764557,8.793e-05,2]
[351608928,1738660243857,-500.0,8.793e-05,2]
[351608930,1738660243867,-500.0,8.793e-05,2]
[351608932,1738660243877,-996.04,8.793e-05,2]
[351608934,1738660243887,-500.0,8.793e-05,2]
[351608936,1738660243897,-500.0,8.793e-05,2]
[351608938,1738660243906,-500.0,8.793e-05,2]
[351608940,1738660243916,-544.79,8.793e-05,2]
[351608942,1738660243926,-956.13,8.793e-05,2]
[351608944,1738660243935,-1279.93,8.793e-05,2]
[351608946,1738660243944,-939.83,8.793e-05,2]
[351608948,1738660243953,-500.0,8.793e-05,2]
[351608950,1738660243963,-500.0,8.793e-05,2]
[351608952,1738660243972,-652.78,8.793e-05,2]
[351608954,1738660243982,-500.0,8.793e-05,2]
[351608956,1738660243992,-500.0,8.793e-05,2]
[351608958,1738660244005,-500.0,8.793e-05,2]
[351608960,1738660244018,-500.0,8.793e-05,2]
[351608962,1738660244028,-908.14,8.793e-05,2]
[351608964,1738660244038,-500.0,8.793e-05,2]
[351608966,1738660244051,-500.0,8.793e-05,2]
[351608968,1738660244062,-500.0,8.793e-05,2]
[351608970,1738660244071,-500.0,8.793e-05,2]
[351608972,1738660244083,-851.24,8.793e-05,2]
[351608974,1738660244094,-500.0,8.793e-05,2]
[351608976,1738660244103,-871.51,8.793e-05,2]
[351608978,1738660244113,-500.0,8.793e-05,2]
[351608980,1738660244122,-500.0,8.793e-05,2]
[351608982,1738660244133,-500.0,8.793e-05,2]
[351608984,1738660244142,-500.0,8.793e-05,2]
[351608986,1738660244153,-500.0,8.793e-05,2]
[351608988,1738660244163,-763.03,8.793e-05,2]
[351608990,1738660244173,-860.74,8.793e-05,2]
[351608992,1738660244183,-1758.02,8.793e-05,2]
[351608994,1738660244193,-500.56,8.793e-05,2]
[351608996,1738660244204,-500.0,8.793e-05,2]
[351608998,1738660244213,-500.0,8.793e-05,2]
[351609000,1738660244223,-500.0,8.793e-05,2]
[351609002,1738660244232,-500.0,8.793e-05,2]
[351609004,1738660244242,-500.0,8.793e-05,2]
[351609006,1738660244251,-175.04330775,8.793e-05,2]
[351609008,1738660244263,-572.04,8.793e-05,2]
[351609011,1738660244272,-500.0,8.793e-05,2]
[351609013,1738660244282,-500.0,8.793e-05,2]
[351609014,1738660244293,-506.59272344,8.793e-05,2]
[351609017,1738660244302,-500.0,8.793e-05,2]
[351609019,1738660244314,-500.0,8.793e-05,2]
[351609020,1738660244324,-709.19,8.793e-05,2]
[351609022,1738660244334,-500.0,8.793e-05,2]
[351609024,1738660244343,-500.0,8.793e-05,2]
[351609026,1738660244353,-500.0,8.793e-05,2]
[351609028,1738660244362,-500.0,8.793e-05,2]
[351609030,1738660244372,-501.95,8.793e-05,2]
[351609032,1738660244381,-1103.09,8.793e-05,2]
[351609034,1738660244391,-500.0,8.793e-05,2]
[351609037,1738660244401,-857.97,8.793e-05,2]
[351609038,1738660244411,-487.57288583,8.793e-05,2]
[351609040,1738660244420,-500.0,8.793e-05,2]
[351609042,1738660244429,-831.02,8.793e-05,2]
[351609044,1738660244438,-639.56,8.793e-05,2]
[351609046,1738660244448,-1507.45,8.793e-05,2]
[351609048,1738660244458,-683.01,8.793e-05,2]
[351609050,1738660244467,-314.30688617,8.793e-05,2]
[351609052,1738660244476,-500.0,8.793e-05,2]
[351609054,1738660244485,-500.0,8.793e-05,2]
[351609056,1738660244495,-500.0,8.793e-05,2]
[351609058,1738660244505,-500.0,8.793e-05,2]
[351609061,1738660244517,-806.34,8.793e-05,2]
[351609063,1738660244526,-500.0,8.793e-05,2]
[351609065,1738660244536,-601.32,8.793e-05,2]
[351609067,1738660244546,-500.0,8.793e-05,2]
[351609069,1738660244555,-500.0,8.793e-05,2]
[351609071,1738660244564,-573.46,8.793e-05,2]
[351609073,1738660244574,-815.34,8.793e-05,2]
[351609075,1738660244583,-500.0,8.793e-05,2]
[351609077,1738660244593,-500.0,8.793e-05,2]
[351609079,1738660244602,-500.0,8.793e-05,2]
[351609080,1738660244611,-500.0,8.793e-05,2]
[351609082,1738660244620,-563.13,8.793e-05,2]
[351609084,1738660244629,-692.41,8.793e-05,2]
[351609086,1738660244639,-500.0,8.793e-05,2]
[351609087,1738660244648,-500.0,8.793e-05,2]
[351609088,1738660244658,-888.45,8.793e-05,2]
[351609089,1738660244667,-500.0,8.793e-05,2]
[351609090,1738660244677,-853.25,8.793e-05,2]
[351609091,1738660244686,-1007.2,8.793e-05,2]
[351609092,1738660244695,-594.96,8.793e-05,2]
[351609093,1738660244705,-1368.9,8.793e-05,2]
[351609094,1738660244715,-500.0,8.793e-05,2]
[351609096,1738660244724,-635.83,8.793e-05,2]
[351609098,1738660244734,-500.0,8.793e-05,2]
[351609100,1738660244743,-678.91,8.793e-05,2]
[351609102,1738660244753,-1041.29,8.793e-05,2]
[351609104,1738660244763,-500.0,8.793e-05,2]
[351609106,1738660244773,-500.0,8.793e-05,2]
[351609108,1738660244782,-500.0,8.793e-05,2]
[351609110,1738660244791,-602.89,8.793e-05,2]
[351609112,1738660244800,-518.0,8.793e-05,2]
[351609114,1738660244809,-820.15,8.793e-05,2]
[351609116,1738660244819,-500.0,8.793e-05,2]
[351609118,1738660244829,-512.46,8.793e-05,2]
[351609120,1738660244838,-500.0,8.793e-05,2]
[351609122,1738660244847,-1063.24,8.793e-05,2]
[351609124,1738660244856,-500.0,8.793e-05,2]
[351609126,1738660244865,-500.0,8.793e-05,2]
[351609128,1738660244874,-500.0,8.793e-05,2]
[351609130,1738660244883,-500.0,8.793e-05,2]
[351609131,1738660244892,-748.99,8.793e-05,2]
[351609133,1738660244901,-500.0,8.793e-05,2]
[351609135,1738660244911,-500.0,8.793e-05,2]
[351609138,1738660244921,-444.1686863,8.793e-05,2]
[351609140,1738660244936,-722.2513137,8.793e-05,2]
[351609142,1738660244946,-465.65619549,8.793e-05,2]
[351609145,1738660244963,-34.34380451,8.793e-05,2]
[351609170,1738660245163,-500.0,8.793e-05,2]
[351609173,1738660245220,-500.0,8.793e-05,2]
[351609175,1738660245229,-500.0,8.793e-05,2]
[351609177,1738660245239,-612.22,8.793e-05,2]
[351609179,1738660245250,-500.0,8.793e-05,2]
[351609181,1738660245261,-928.08,8.793e-05,2]
[351609184,1738660245272,-500.0,8.793e-05,2]
[351609185,1738660245282,-696.71,8.793e-05,2]
[351609187,1738660245291,-500.0,8.793e-05,2]
[351609189,1738660245301,-500.0,8.793e-05,2]
[351609191,1738660245310,-500.0,8.793e-05,2]
[351609194,1738660245320,-500.0,8.793e-05,2]
[351609196,1738660245330,-500.0,8.793e-05,2]
[351609199,1738660245342,-500.0,8.793e-05,2]
[351609201,1738660245352,-500.0,8.793e-05,2]
[351609204,1738660245361,-500.0,8.793e-05,2]
[351609206,1738660245370,-500.0,8.793e-05,2]
[351609209,1738660245380,-892.12,8.793e-05,2]
[351609212,1738660245389,-500.0,8.793e-05,2]
[351609215,1738660245399,-500.0,8.793e-05,2]
[351609218,1738660245409,-856.96,8.793e-05,2]
[351609221,1738660245418,-789.43,8.793e-05,2]
[351609224,1738660245427,-500.0,8.793e-05,2]
[351609227,1738660245436,-1078.01,8.793e-05,2]
[351609230,1738660245446,-916.8,8.793e-05,2]
[351609235,1738660245455,-500.0,8.793e-05,2]
[351609239,1738660245465,-500.0,8.793e-05,2]
[351609242,1738660245474,-538.1,8.793e-05,2]
[351609245,1738660245485,-500.0,8.793e-05,2]
[351609248,1738660245497,-500.0,8.793e-05,2]
[351609251,1738660245507,-1302.5,8.793e-05,2]
[351609254,1738660245520,-838.05,8.793e-05,2]
[351609257,1738660245530,-500.0,8.793e-05,2]
[351609260,1738660245539,-642.48,8.793e-05,2]
[351609262,1738660245549,-528.27,8.793e-05,2]
[351609264,1738660245558,-500.0,8.793e-05,2]
[351609266,1738660245568,-500.0,8.793e-05,2]
[351609268,1738660245577,-876.33,8.793e-05,2]
[351609270,1738660245586,-500.0,8.793e-05,2]
[351609272,1738660245596,-826.75,8.793e-05,2]
[351609274,1738660245605,-500.0,8.793e-05,2]
[351609276,1738660245614,-985.71,8.793e-05,2]
[351609278,1738660245624,-1088.95,8.793e-05,2]
[351609280,1738660245634,-500.0,8.793e-05,2]
[351609282,1738660245643,-500.0,8.793e-05,2]
[351609284,1738660245653,-1429.1,8.793e-05,2]
[351609286,1738660245663,-500.0,8.793e-05,2]
[351609288,1738660245672,-500.0,8.793e-05,2]
[351609290,1738660245681,-500.0,8.793e-05,2]
[351609292,1738660245690,-500.0,8.793e-05,2]
[351609294,1738660245700,-500.0,8.793e-05,2]
[351609296,1738660245710,-500.0,8.793e-05,2]
[351609298,1738660245720,-500.0,8.793e-05,2]
[351609301,1738660245730,-500.0,8.793e-05,2]
[351609303,1738660245741,-939.74,8.793e-05,2]
[351609305,1738660245750,-589.01,8.793e-05,2]
[351609307,1738660245761,-500.0,8.793e-05,2]
[351609309,1738660245772,-500.0,8.793e-05,2]
[351609311,1738660245781,-698.57,8.793e-05,2]
[351609313,1738660245791,-723.08,8.793e-05,2]
[351609315,1738660245801,-500.0,8.793e-05,2]
[351609317,1738660245811,-656.25,8.793e-05,2]
[351609319,1738660245820,-697.22,8.793e-05,2]
[351609321,1738660245829,-546.05,8.793e-05,2]
[351609323,1738660245839,-1347.19,8.793e-05,2]
[351609325,1738660245848,-500.0,8.793e-05,2]
[351609327,1738660245857,-500.0,8.793e-05,2]
[351609329,1738660245867,-500.0,8.793e-05,2]
[351609331,1738660245876,-500.0,8.793e-05,2]
[351609332,1738660245886,-1558.37,8.793e-05,2]
[351609334,1738660245896,-784.81,8.793e-05,2]
[351609336,1738660245907,-500.0,8.793e-05,2]
[351609338,1738660245917,-450.97268122,8.793e-05,2]
[351609341,1738660245938,-49.02731878,8.793e-05,2]
[351609343,1738660245949,-221.4215798,8.793e-05,2]
[351609345,1738660245959,-500.0,8.793e-05,2]
[351609346,1738660245968,-500.0,8.793e-05,2]
[351609348,1738660245978,-371.26147574,8.793e-05,2]
[351609350,1738660245988,-366.55283038,8.793e-05,2]
[351609385,1738660246335,-133.44716962,8.793e-05,2]
[351609386,1738660246345,-500.0,8.793e-05,2]
[351609388,1738660246354,-349.13443038,8.793e-05,2]
[351609391,1738660246371,-150.86556962,8.793e-05,2]
[351609393,1738660246381,-158.57936726,8.793e-05,2]
[351609395,1738660246392,-341.42063274,8.793e-05,2]
[351609396,1738660246401,-451.57506893,8.793e-05,2]